bitfinex/quotes_BTCUSD_20250512
["timestamp","ask_amount","ask_price","bid_price","bid_amount"]
[1747085596484,0.07,102430.0,102420.0,1.0017957]
[1747085597798,0.07,102430.0,102420.0,1.3227487]
[1747085598424,0.07,102430.0,102420.0,1.8495887]
[1747085598659,0.002,102430.0,102420.0,1.8495887]
[1747085599729,0.002,102430.0,102420.0,1.85916098]
[1747085601772,0.002,102430.0,102420.0,2.08425968]
[1747085603105,0.0786666,102450.0,102440.0,0.70501791]
[1747085603311,0.0786666,102450.0,102440.0,0.79699592]
[1747085603729,0.0786666,102450.0,102440.0,1.19699592]
[1747085604055,0.1486666,102450.0,102440.0,1.19699592]
[1747085605361,0.1586666,102450.0,102440.0,1.19699592]
[1747085605706,0.1676666,102450.0,102440.0,1.19799592]
[1747085605918,0.089,102450.0,102440.0,1.19799592]
[1747085607335,0.089,102450.0,102440.0,1.63385022]
[1747085608036,0.089,102450.0,102440.0,1.82061022]
[1747085608259,0.019,102450.0,102440.0,2.04570892]
[1747085608832,0.0786666,102470.0,102460.0,0.22447668]
[1747085609032,0.0786666,102470.0,102460.0,0.70707408]
[1747085609548,0.0786666,102470.0,102460.0,0.80044088]
[1747085609751,0.0786666,102470.0,102460.0,1.20044088]
[1747085610182,0.07915383,102470.0,102460.0,1.20044088]
[1747085610396,0.00048723,102470.0,102460.0,1.20044088]
[1747085610611,0.00748723,102470.0,102460.0,1.20144088]
[1747085611109,0.01648723,102470.0,102460.0,1.20244088]
[1747085615915,0.01648723,102470.0,102460.0,1.29829518]
[1747085617071,0.01648723,102470.0,102460.0,2.05007388]
[1747085617271,0.00748723,102470.0,102460.0,2.04907388]
[1747085617480,0.00048723,102470.0,102460.0,2.04807388]
[1747085617694,0.00148723,102470.0,102460.0,2.05007388]
[1747085617946,0.00048723,102470.0,102460.0,2.04807388]
[1747085618165,0.00048723,102470.0,102460.0,2.05107388]
[1747085618350,0.00148723,102470.0,102460.0,2.05107388]
[1747085618731,0.00148723,102470.0,102460.0,2.05307388]
[1747085618939,0.12877583,102510.0,102500.0,0.22438909]
[1747085619286,0.12877583,102510.0,102500.0,0.49352769]
[1747085619798,0.13853069,102510.0,102500.0,0.49352769]
[1747085620006,0.13853069,102510.0,102500.0,0.89352769]
[1747085620238,0.34338865,102510.0,102500.0,0.66942899]
[1747085620447,0.15819697,102510.0,102500.0,0.89452769]
[1747085620623,0.15819697,102510.0,102500.0,0.89552769]
[1747085620772,0.17019697,102510.0,102500.0,0.89552769]
[1747085621174,0.08186409,102510.0,102500.0,0.89552769]
[1747085621614,0.09161904,102510.0,102500.0,0.67042899]
[1747085621843,0.09161904,102510.0,102500.0,0.89552769]
[1747085622081,0.022,102510.0,102500.0,0.89552769]
[1747085622286,0.022,102510.0,102500.0,0.67042899]
[1747085622711,0.03175428,102510.0,102500.0,1.12062639]
[1747085622932,0.00975428,102510.0,102500.0,1.11862639]
[1747085623274,0.02175428,102510.0,102500.0,0.62552643]
[1747085623485,0.03150875,102510.0,102500.0,0.62452643]
[1747085623683,0.04250875,102510.0,102500.0,0.85062513]
[1747085623886,0.04250875,102510.0,102500.0,0.85162513]
[1747085623887,0.05350875,102510.0,102500.0,0.85162513]
[1747085624109,0.05350875,102510.0,102500.0,1.07672383]
[1747085624305,0.034,102510.0,102500.0,1.19481978]
[1747085624915,0.023,102510.0,102500.0,1.19381978]
[1747085625131,0.023,102510.0,102500.0,1.38049978]
[1747085625353,0.032,102510.0,102500.0,1.47735408]
[1747085626097,0.032,102510.0,102500.0,1.19481978]
[1747085626462,0.032,102510.0,102500.0,1.47735408]
[1747085627593,0.032,102510.0,102500.0,2.04245278]
[1747085628472,0.023,102510.0,102500.0,2.04145278]
[1747085628688,0.023,102510.0,102500.0,2.04445278]
[1747085629114,0.01950334,102540.0,102530.0,0.22432342]
[1747085629319,0.01950325,102540.0,102530.0,0.27133319]
[1747085629495,0.02925516,102540.0,102530.0,0.27133319]
[1747085629830,0.01950325,102540.0,102530.0,0.27133319]
[1747085630009,0.01950325,102540.0,102530.0,0.67133319]
[1747085630453,0.02925516,102540.0,102530.0,0.62432342]
[1747085631248,0.04025516,102540.0,102530.0,0.62532342]
[1747085631590,0.05000726,102540.0,102530.0,0.62532342]
[1747085632824,0.023,102540.0,102530.0,0.62632342]
[1747085633012,0.03275162,102540.0,102530.0,1.00055503]
[1747085633227,0.03275162,102540.0,102530.0,1.09640933]
[1747085633425,0.03275162,102540.0,102530.0,0.72217772]
[1747085633579,0.08425534,102540.0,102530.0,0.62632342]
[1747085633801,0.10375963,102540.0,102530.0,0.62632342]
[1747085635371,0.29880546,102540.0,102530.0,0.19706485]
[1747085635542,1.19721622,102540.0,102530.0,0.002]
[1747085636733,1.20629177,102540.0,102530.0,0.002]
[1747085641910,0.86376016,102540.0,102530.0,0.002]
[1747085643295,1.20629177,102540.0,102530.0,0.002]
[1747085643719,1.01178177,102540.0,102530.0,0.002]
[1747085643922,1.20058177,102540.0,102530.0,0.002]
[1747085644439,0.85805016,102540.0,102530.0,0.002]
[1747085644679,1.20058177,102540.0,102530.0,0.002]
[1747085647409,0.85805016,102540.0,102530.0,0.002]
[1747085647626,1.20058177,102540.0,102530.0,0.002]
[1747085648284,0.85805016,102540.0,102530.0,0.002]
[1747085648503,1.20058177,102540.0,102530.0,0.002]
[1747085649400,1.08293805,102540.0,102530.0,0.002]
[1747085651978,0.85805016,102540.0,102530.0,0.002]
[1747085652456,1.08293805,102540.0,102530.0,0.002]
[1747085654253,0.82605016,102540.0,102530.0,0.002]
[1747085654487,1.05093805,102540.0,102530.0,0.19706485]
[1747085654692,1.05093805,102540.0,102530.0,0.20681809]
[1747085656341,1.04118586,102540.0,102530.0,0.20681809]
[1747085657391,1.04118586,102540.0,102530.0,0.01175324]
[1747085657707,1.04118586,102540.0,102530.0,0.002]
[1747085659721,0.81629797,102540.0,102530.0,0.002]
[1747085662780,0.80722242,102540.0,102530.0,0.002]
[1747085663814,0.81635415,102540.0,102530.0,0.002]
[1747085664209,0.81635415,102540.0,102530.0,0.0184]
[1747085664364,0.81635415,102540.0,102530.0,0.0334]
[1747085664563,0.81635415,102540.0,102530.0,0.002]
[1747085664564,0.62755415,102540.0,102530.0,0.002]
[1747085664775,0.81555415,102540.0,102530.0,0.002]
[1747085664982,0.80642242,102540.0,102530.0,0.002]
[1747085695123,0.78642242,102540.0,102530.0,0.002]
[1747085698917,0.78642242,102540.0,102530.0,0.0185]
[1747085699423,0.78642242,102540.0,102530.0,0.0346]
[1747085701636,0.48642242,102540.0,102530.0,0.0346]
[1747085702992,0.48642242,102540.0,102530.0,0.06244508]
[1747085703630,0.48642242,102540.0,102530.0,0.25750993]
[1747085703854,1.36121615,102550.0,102540.0,0.19504583]
[1747085703855,0.50462826,102550.0,102540.0,0.19504583]
[1747085704064,0.88720256,102550.0,102540.0,0.23679793]
[1747085704275,0.70048256,102550.0,102540.0,0.23679793]
[1747085704472,0.88720256,102550.0,102540.0,0.24654993]
[1747085704676,0.88720256,102550.0,102540.0,0.23679793]
[1747085704891,0.70048256,102550.0,102540.0,0.23679793]
[1747085705035,0.59620256,102550.0,102540.0,0.23793527]
[1747085705291,0.30547058,102550.0,102540.0,0.28624264]
[1747085705649,0.31522135,102550.0,102540.0,0.28624264]
[1747085705853,0.23472336,102550.0,102540.0,0.28624264]
[1747085706058,0.22497221,102550.0,102540.0,0.2671908]
[1747085706274,0.23472326,102550.0,102540.0,0.2671908]
[1747085706714,0.22497221,102550.0,102540.0,0.2671908]
[1747085706915,0.01875058,102550.0,102540.0,0.2671908]
[1747085707117,0.02950135,102550.0,102540.0,0.2671908]
[1747085707326,0.01,102550.0,102540.0,0.35835125]
[1747085707752,0.01,102550.0,102540.0,0.36335125]
[1747085708191,0.01,102550.0,102540.0,0.2761908]
[1747085708387,0.01,102550.0,102540.0,0.59693299]
[1747085709003,0.01,102550.0,102540.0,0.82182088]
[1747085709407,0.01,102550.0,102540.0,0.83662669]
[1747085709767,0.01,102550.0,102540.0,1.17662669]
[1747085709975,0.01,102550.0,102540.0,1.27248099]
[1747085710826,0.01,102550.0,102540.0,1.4214731]
[1747085711026,0.01,102550.0,102540.0,1.64636099]
[1747085711302,0.01,102550.0,102540.0,2.04636099]
[1747085712572,0.01,102550.0,102540.0,2.04620099]
[1747085713500,0.01,102550.0,102540.0,1.8213131]
[1747085713677,0.01,102550.0,102540.0,2.04620099]
[1747085719462,0.01,102550.0,102540.0,1.8213131]
[1747085726428,0.01,102550.0,102540.0,2.04620099]
[1747085727307,0.01,102550.0,102540.0,1.8213131]
[1747085731187,0.01,102550.0,102540.0,1.59642521]
[1747085731394,0.01,102550.0,102540.0,0.87295359]
[1747085731681,0.02950163,102550.0,102540.0,0.2441908]
[1747085731890,0.02944859,102550.0,102540.0,0.2441908]
[1747085732101,0.03919974,102550.0,102540.0,0.2441908]
[1747085732309,0.02944849,102550.0,102540.0,0.2441908]
[1747085732545,0.03919945,102550.0,102540.0,0.2441908]
[1747085732755,0.01969763,102550.0,102540.0,0.2753908]
[1747085732898,0.02944849,102550.0,102540.0,0.2753908]
[1747085734107,0.02944849,102550.0,102540.0,0.6753908]
[1747085734492,0.00994696,102550.0,102540.0,0.7712451]
[1747085734698,0.02944821,102550.0,102540.0,0.99613299]
[1747085735099,0.02944821,102550.0,102540.0,0.6753908]
[1747085735643,0.02944811,102550.0,102540.0,0.6753908]
[1747085736736,0.02944811,102550.0,102540.0,0.69035764]
[1747085738272,0.02944811,102550.0,102540.0,0.29035764]
[1747085738419,0.02944811,102550.0,102540.0,0.2753908]
[1747085738629,0.02944811,102550.0,102540.0,0.6753908]
[1747085739836,0.02944811,102550.0,102540.0,0.8624708]
[1747085740545,0.03919897,102550.0,102540.0,0.8624708]
[1747085740700,0.03919897,102550.0,102540.0,0.6753908]
[1747085740910,0.03919897,102550.0,102540.0,0.8312708]
[1747085741128,0.02944811,102550.0,102540.0,0.8312708]
[1747085741336,0.03919907,102550.0,102540.0,0.8312708]
[1747085741546,0.03919897,102550.0,102540.0,0.8312708]
[1747085741756,0.04895002,102550.0,102540.0,0.8312708]
[1747085742913,0.26542702,102550.0,102540.0,0.20518317]
[1747085743171,0.26542702,102550.0,102540.0,0.22468746]
[1747085743352,0.32542702,102550.0,102540.0,0.22468746]
[1747085743623,0.32542702,102550.0,102540.0,0.23443937]
[1747085744534,0.32542702,102550.0,102540.0,0.22468746]
[1747085744746,0.32542702,102550.0,102540.0,0.23443937]
[1747085745484,0.33514885,102550.0,102540.0,0.23443937]
[1747085745922,0.55028588,102550.0,102540.0,0.01013734]
[1747085746588,0.32539799,102550.0,102540.0,0.01013734]
[1747085747860,0.51535799,102550.0,102540.0,0.01013734]
[1747085749225,0.83610018,102550.0,102540.0,0.01013734]
[1747085749432,1.15071236,102550.0,102540.0,0.01013734]
[1747085749644,1.33779236,102550.0,102540.0,0.01013734]
[1747085762575,1.11290447,102550.0,102540.0,0.01013734]
[1747085762797,1.33779236,102550.0,102540.0,0.01013734]
[1747085767351,1.11290447,102550.0,102540.0,0.01013734]
[1747085767562,1.33779236,102550.0,102540.0,0.01013734]
[1747085784509,1.32279236,102550.0,102540.0,0.01013734]
[1747085787402,0.20479793,102540.0,102530.0,0.00800734]
[1747085787617,0.30065223,102540.0,102530.0,0.00806544]
[1747085788005,0.30974894,102540.0,102530.0,0.00806544]
[1747085788658,0.31074894,102540.0,102530.0,0.04006544]
[1747085788826,0.31174894,102540.0,102530.0,0.04006544]
[1747085791717,0.31174894,102540.0,102530.0,0.05616544]
[1747085792448,0.31174894,102540.0,102530.0,0.04006544]
[1747085794966,0.31174894,102540.0,102530.0,0.26008353]
[1747085795851,0.31174894,102540.0,102530.0,0.24488353]
[1747085796431,0.01109671,102540.0,102530.0,0.24488353]
[1747085796634,0.04035195,102540.0,102530.0,0.2891421]
[1747085796835,0.21767986,102540.0,102530.0,0.2891421]
[1747085797288,0.21767976,102540.0,102530.0,0.2891421]
[1747085797898,0.22743157,102540.0,102530.0,0.2891421]
[1747085798069,0.21767976,102540.0,102530.0,0.2891421]
[1747085799605,0.22743157,102540.0,102530.0,0.2891421]
[1747085799909,0.21767976,102540.0,102530.0,0.2891421]
[1747085800112,0.22743157,102540.0,102530.0,0.2891421]
[1747085801255,0.21767976,102540.0,102530.0,0.2891421]
[1747085801663,0.22743157,102540.0,102530.0,0.2891421]
[1747085801864,0.2273275,102540.0,102530.0,0.2891421]
[1747085804120,0.21757569,102540.0,102530.0,0.2891421]
[1747085804341,0.2273275,102540.0,102530.0,0.2891421]
[1747085808279,0.2273275,102540.0,102530.0,0.2741421]
[1747085808659,0.2273275,102540.0,102530.0,0.2902421]
[1747085815354,0.23707941,102540.0,102530.0,0.2902421]
[1747085815600,0.02074407,102540.0,102530.0,0.2902421]
[1747085815834,0.01099264,102540.0,102530.0,0.95098429]
[1747085816475,0.002,102540.0,102530.0,0.95098429]
[1747085818142,0.002,102540.0,102530.0,1.35098429]
[1747085819048,0.002,102540.0,102530.0,1.1260964]
[1747085819254,0.002,102540.0,102530.0,1.35098429]
[1747085820757,0.002,102540.0,102530.0,1.63367859]
[1747085822327,0.002,102540.0,102530.0,1.53782429]
[1747085826263,0.002,102540.0,102530.0,1.56710129]
[1747085828941,0.002,102540.0,102530.0,1.53782429]
[1747085835081,0.002,102540.0,102530.0,1.52172429]
[1747085840279,0.002,102540.0,102530.0,1.53792429]
[1747085840495,0.002,102540.0,102530.0,1.63377859]
[1747085841354,0.002,102540.0,102530.0,1.66305559]
[1747085841900,0.002,102540.0,102530.0,1.63377859]
[1747085846044,0.002,102540.0,102530.0,2.07996733]
[1747085846247,0.00899264,102560.0,102550.0,0.59437968]
[1747085846452,0.0152,102580.0,102570.0,0.56423594]
[1747085846661,0.0152,102580.0,102570.0,1.07177813]
[1747085847077,0.0152,102580.0,102570.0,1.47177813]
[1747085847451,0.1107666,102590.0,102580.0,0.22421408]
[1747085847690,0.11125451,102590.0,102580.0,0.44910197]
[1747085847897,0.11125451,102590.0,102580.0,0.54495627]
[1747085848073,0.11125451,102590.0,102580.0,0.32006838]
[1747085848964,0.11125451,102590.0,102580.0,0.72006838]
[1747085849134,0.03258791,102590.0,102580.0,0.72006838]
[1747085849315,0.03358791,102590.0,102580.0,0.72006838]
[1747085850543,0.04333468,102590.0,102580.0,0.62421408]
[1747085852033,0.04333468,102590.0,102580.0,0.22421408]
[1747085852418,0.04333468,102590.0,102580.0,0.62421408]
[1747085852624,0.03358791,102590.0,102580.0,0.62421408]
[1747085852845,0.04333459,102590.0,102580.0,0.62421408]
[1747085853049,0.04333459,102590.0,102580.0,0.72006838]
[1747085853291,0.03358791,102590.0,102580.0,0.81592268]
[1747085856533,0.01788791,102590.0,102580.0,0.81592268]
[1747085859141,0.03368791,102590.0,102580.0,0.81592268]
[1747085865751,0.04343468,102590.0,102580.0,0.81592268]
[1747085866269,0.03368791,102590.0,102580.0,0.81592268]
[1747085866493,0.04343468,102590.0,102580.0,0.81592268]
[1747085867019,0.03368791,102590.0,102580.0,0.81592268]
[1747085867235,0.04343478,102590.0,102580.0,0.81592268]
[1747085867396,0.04343478,102590.0,102580.0,0.72006838]
[1747085867614,0.04343478,102590.0,102580.0,0.32006838]
[1747085868276,0.04343468,102590.0,102580.0,0.72006838]
[1747085868478,0.03368791,102590.0,102580.0,0.72006838]
[1747085868930,0.04343478,102590.0,102580.0,0.72006838]
[1747085869147,0.04343468,102590.0,102580.0,0.72006838]
[1747085869367,0.06292908,102590.0,102580.0,0.81089408]
[1747085869557,0.06292899,102590.0,102580.0,0.41089408]
[1747085869920,0.25681408,102580.0,102570.0,0.22423613]
[1747085870128,0.26656256,102580.0,102570.0,0.22423613]
[1747085870341,0.26656256,102580.0,102570.0,0.22423632]
[1747085870755,0.26656256,102580.0,102570.0,0.63398528]
[1747085870956,0.26656256,102580.0,102570.0,0.23398528]
[1747085871167,0.26656256,102580.0,102570.0,0.24398528]
[1747085872125,0.26656256,102580.0,102570.0,0.25298528]
[1747085872321,0.26656256,102580.0,102570.0,0.26273414]
[1747085873929,0.25681474,102580.0,102570.0,0.23348717]
[1747085875318,0.26588425,102580.0,102570.0,0.23348717]
[1747085875503,0.26588425,102580.0,102570.0,0.24323613]
[1747085879618,0.26588425,102580.0,102570.0,0.25298499]
[1747085882235,0.26588425,102580.0,102570.0,0.26273376]
[1747085882642,0.061166,102580.0,102570.0,0.26273376]
[1747085884664,0.061166,102580.0,102570.0,0.25298499]
[1747085884665,0.26588425,102580.0,102570.0,0.25298499]
[1747085886030,0.19496977,102580.0,102570.0,0.25298499]
[1747085886237,0.21446635,102580.0,102570.0,0.26273376]
[1747085886387,0.01949649,102580.0,102570.0,0.26273376]
[1747085888605,0.01949649,102580.0,102570.0,0.019]
[1747085888606,0.43935415,102580.0,102570.0,0.019]
[1747085889018,0.47135415,102580.0,102570.0,0.019]
[1747085889658,1.09209634,102580.0,102570.0,0.019]
[1747085889877,0.86720845,102580.0,102570.0,0.019]
[1747085891444,0.86720845,102580.0,102570.0,0.01]
[1747085891649,0.86720845,102580.0,102570.0,0.001]
[1747085892067,0.64232056,102580.0,102570.0,0.002]
[1747085892243,0.86820845,102580.0,102570.0,0.002]
[1747085892390,0.86820845,102580.0,102570.0,0.001]
[1747085893171,1.09309634,102580.0,102570.0,0.001]
[1747085893573,0.86820845,102580.0,102570.0,0.001]
[1747085894231,1.57973634,102580.0,102570.0,0.001]
[1747085894887,1.63973634,102580.0,102570.0,0.001]
[1747085895608,0.25527968,102550.0,102540.0,0.224285]
[1747085895826,0.24552901,102550.0,102540.0,0.21453309]
[1747085896049,0.23577805,102550.0,102540.0,0.2047809]
[1747085896488,0.24575372,102550.0,102540.0,0.2047809]
[1747085896706,0.22067805,102550.0,102540.0,0.214533]
[1747085896926,0.23657805,102550.0,102540.0,0.21502091]
[1747085897137,0.23657805,102550.0,102540.0,0.22477291]
[1747085897345,0.23657805,102550.0,102540.0,0.23452482]
[1747085897732,0.23657805,102550.0,102540.0,0.24652482]
[1747085897901,0.23657805,102550.0,102540.0,0.25852482]
[1747085898897,0.55732024,102550.0,102540.0,0.02448791]
[1747085901049,0.55732024,102550.0,102540.0,0.01248791]
[1747085901352,0.56694204,102550.0,102540.0,0.02148791]
[1747085901492,0.56694204,102550.0,102540.0,0.00948791]
[1747085901727,0.56694204,102550.0,102540.0,0.01948791]
[1747085903951,0.34205415,102550.0,102540.0,0.01948791]
[1747085904075,0.56694204,102550.0,102540.0,0.01948791]
[1747085905565,0.75358204,102550.0,102540.0,0.01948791]
[1747085915279,0.73768204,102550.0,102540.0,0.01948791]
[1747085917939,0.74675661,102550.0,102540.0,0.01948791]
[1747085919316,0.80675661,102550.0,102540.0,0.01948791]
[1747085919535,0.74675661,102550.0,102540.0,0.01948791]
[1747085920319,0.22347442,102550.0,102540.0,0.26875231]
[1747085920519,0.21439985,102550.0,102540.0,0.28445231]
[1747085920724,0.03832429,102560.0,102550.0,0.25558006]
[1747085920971,0.0285741,102560.0,102550.0,0.25558016]
[1747085921168,0.0383242,102560.0,102550.0,0.26533083]
[1747085921401,0.04807439,102560.0,102550.0,0.26533083]
[1747085921605,0.0383242,102560.0,102550.0,0.31713909]
[1747085921737,0.0383242,102560.0,102550.0,0.31713928]
[1747085921958,0.04807439,102560.0,102550.0,0.32688995]
[1747085922270,0.00907457,102560.0,102550.0,0.32688995]
[1747085922468,0.01882429,102560.0,102550.0,0.32688995]
[1747085922654,0.0285742,102560.0,102550.0,0.32688995]
[1747085922991,0.01949963,102560.0,102550.0,0.32688995]
[1747085923432,0.00974972,102560.0,102550.0,0.27508169]
[1747085923637,0.01949953,102560.0,102550.0,0.27508169]
[1747085923834,0.02924953,102560.0,102550.0,0.27508169]
[1747085924244,0.01949953,102560.0,102550.0,0.27508169]
[1747085924713,0.02924953,102560.0,102550.0,0.27508169]
[1747085925329,0.02924953,102560.0,102550.0,0.32498987]
[1747085926544,0.08924953,102560.0,102550.0,0.32498987]
[1747085927153,0.08924953,102560.0,102550.0,0.32430056]
[1747085932509,0.09899972,102560.0,102550.0,0.32430056]
[1747085932700,0.08924953,102560.0,102550.0,0.27439238]
[1747085934171,0.02924953,102560.0,102550.0,0.27439238]
[1747085934685,0.03899972,102560.0,102550.0,0.27439238]
[1747085934826,0.02924953,102560.0,102550.0,0.27439238]
[1747085935596,0.02924953,102560.0,102550.0,0.325211]
[1747085936014,0.03899963,102560.0,102550.0,0.325211]
[1747085936533,0.09899963,102560.0,102550.0,0.325211]
[1747085936833,0.09899963,102560.0,102550.0,0.27439238]
[1747085937275,0.03899963,102560.0,102550.0,0.27439238]
[1747085939518,0.02924953,102560.0,102550.0,0.27439238]
[1747085939755,0.03899972,102560.0,102550.0,0.27439238]
[1747085939906,0.02924953,102560.0,102550.0,0.27439238]
[1747085940583,0.02924953,102560.0,102550.0,0.28828687]
[1747085941606,0.08924953,102560.0,102550.0,0.28828687]
[1747085941984,0.08924953,102560.0,102550.0,0.27439238]
[1747085942577,0.06,102560.0,102550.0,0.27439238]
[1747085943186,0.03832201,102570.0,102560.0,0.25535781]
[1747085944009,0.02924744,102570.0,102560.0,0.25535781]
[1747085944408,0.03524744,102570.0,102560.0,0.25635781]
[1747085944648,0.02549744,102570.0,102560.0,0.30337747]
[1747085944850,0.01574858,102570.0,102560.0,0.25635781]
[1747085945012,0.02274858,102570.0,102560.0,0.25735781]
[1747085945343,0.04224649,102570.0,102560.0,0.25735781]
[1747085945560,0.02274858,102570.0,102560.0,0.25735781]
[1747085945770,0.04224611,102570.0,102560.0,0.25735781]
[1747085946644,0.013,102570.0,102560.0,0.40033177]
[1747085947873,0.013,102570.0,102560.0,0.62521966]
[1747085948704,0.013,102570.0,102560.0,0.40033177]
[1747085949728,0.013,102570.0,102560.0,0.62521966]
[1747085950158,0.013,102570.0,102560.0,1.02521966]
[1747085951623,0.013,102570.0,102560.0,1.36521966]
[1747085954025,0.013,102570.0,102560.0,1.55173966]
[1747085955605,0.013,102570.0,102560.0,1.77662755]
[1747085955735,0.013,102570.0,102560.0,1.55173966]
[1747085956180,0.013,102570.0,102560.0,1.77662755]
[1747085957149,0.013,102570.0,102560.0,1.55173966]
[1747085958373,0.013,102570.0,102560.0,1.77662755]
[1747085958573,0.013,102570.0,102560.0,1.55173966]
[1747085960104,0.013,102570.0,102560.0,1.77662755]
[1747085961316,0.006,102570.0,102560.0,1.77562755]
[1747085961526,0.006,102570.0,102560.0,1.78562755]
[1747085961941,0.01949393,102590.0,102580.0,0.22421408]
[1747085962246,0.01949393,102590.0,102580.0,0.24081408]
[1747085962656,0.01949393,102590.0,102580.0,0.29411032]
[1747085963106,0.02649393,102590.0,102580.0,0.29516842]
[1747085963680,0.03249393,102590.0,102580.0,0.29616842]
[1747085963908,0.02274687,102590.0,102580.0,0.29616842]
[1747085964145,0.03249393,102590.0,102580.0,0.29616842]
[1747085965981,0.03249393,102590.0,102580.0,0.31126842]
[1747085966100,0.02274687,102590.0,102580.0,0.31126842]
[1747085966757,0.02274687,102590.0,102580.0,0.71126842]
[1747085967737,0.03249393,102590.0,102580.0,0.71126842]
[1747085968189,0.03249393,102590.0,102580.0,0.31126842]
[1747085968636,0.03249393,102590.0,102580.0,0.25797218]
[1747085969070,0.02274687,102590.0,102580.0,0.25797218]
[1747085969303,0.03249383,102590.0,102580.0,0.25797218]
[1747085969923,0.03249383,102590.0,102580.0,0.2678982]
[1747085972325,0.013,102590.0,102580.0,0.7637525]
[1747085972534,0.013,102590.0,102580.0,1.08449469]
[1747085979427,0.003,102590.0,102580.0,1.08449469]
[1747085985377,0.003,102590.0,102580.0,1.07456867]
[1747085987706,0.003,102590.0,102580.0,1.08939447]
[1747085988203,0.003,102590.0,102580.0,1.27579447]
[1747085988413,0.003,102590.0,102580.0,1.50068236]
[1747085988621,0.003,102590.0,102580.0,2.02704236]
[1747085989443,0.003,102590.0,102580.0,2.03657079]
[1747085990084,0.01948965,102610.0,102600.0,0.22417038]
[1747085990289,0.32516406,102620.0,102610.0,0.22414853]
[1747085990494,0.31561511,102620.0,102610.0,0.22414853]
[1747085990713,0.02544335,102630.0,102620.0,0.21438248]
[1747085990926,0.35600466,102630.0,102620.0,0.21438248]
[1747085991137,0.36507678,102630.0,102620.0,0.21438248]
[1747085991347,0.36507678,102630.0,102620.0,0.22412659]
[1747085991960,0.37782042,102630.0,102620.0,0.22518469]
[1747085992265,0.38756415,102630.0,102620.0,0.23492871]
[1747085992493,0.38856415,102630.0,102620.0,0.23592871]
[1747085993050,0.37882108,102630.0,102620.0,0.22618469]
[1747085993619,0.18394629,102630.0,102620.0,0.22618469]
[1747085993964,0.13255836,102630.0,102620.0,0.32064293]
[1747085994160,0.14230181,102630.0,102620.0,0.32064293]
[1747085994379,0.15780181,102630.0,102620.0,0.32064293]
[1747085994557,0.12857212,102630.0,102620.0,0.23592871]
[1747085994912,0.11307212,102630.0,102620.0,0.23592871]
[1747085995112,0.11307212,102630.0,102620.0,0.25232871]
[1747085995773,0.11307212,102630.0,102620.0,0.23592871]
[1747085997230,0.11307212,102630.0,102620.0,0.25102871]
[1747085999060,0.11307212,102630.0,102620.0,0.65102871]
[1747085999470,0.104,102630.0,102620.0,0.65102871]
[1747085999681,0.11374307,102630.0,102620.0,0.65102871]
[1747086000005,0.11374298,102630.0,102620.0,0.65102871]
[1747086000220,0.104,102630.0,102620.0,0.65102871]
[1747086000461,0.104,102630.0,102620.0,2.02145309]
[1747086000736,0.004,102630.0,102620.0,2.02145309]
[1747086000957,0.00907212,102660.0,102650.0,0.25666119]
[1747086001173,0.00907212,102660.0,102650.0,0.59666119]
[1747086001399,0.00907212,102660.0,102650.0,0.69251549]
[1747086001870,0.00974117,102650.0,102640.0,0.2045984]
[1747086002106,0.20459802,102640.0,102630.0,0.38120144]
[1747086002325,0.20459802,102640.0,102620.0,0.0120581]
[1747086002326,0.21436159,102630.0,102620.0,0.0120581]
[1747086002540,0.21436159,102630.0,102620.0,0.21669637]
[1747086002775,0.21436159,102630.0,102620.0,5.81e-05]
[1747086002987,0.21436159,102630.0,102620.0,0.22418545]
[1747086003495,0.21436159,102630.0,102620.0,0.23618545]
[1747086003735,0.21436159,102630.0,102620.0,0.25793004]
[1747086004118,0.21436159,102630.0,102620.0,0.26767434]
[1747086004541,0.21436159,102630.0,102620.0,0.23844115]
[1747086004977,0.21436159,102630.0,102620.0,0.0240581]
[1747086004978,0.55616052,102630.0,102620.0,0.0240581]
[1747086005409,0.6824148,102630.0,102620.0,0.0240581]
[1747086006285,0.7424148,102630.0,102620.0,0.0240581]
[1747086009998,1.0824148,102630.0,102620.0,0.0240581]
[1747086010204,2.02448485,102630.0,102620.0,0.0240581]
[1747086011176,2.02448485,102630.0,102620.0,0.0120581]
[1747086011329,2.02448485,102630.0,102620.0,0.0150581]
[1747086011536,2.02448485,102630.0,102620.0,0.0030581]
[1747086011968,2.21112485,102630.0,102620.0,0.0050581]
[1747086012551,2.21112485,102630.0,102620.0,0.0020581]
[1747086012912,2.21112485,102630.0,102620.0,0.0040581]
[1747086013555,1.61112485,102630.0,102620.0,0.0040581]
[1747086013766,1.62112485,102630.0,102620.0,0.0040581]
[1747086014203,1.72112485,102630.0,102620.0,0.0040581]
[1747086014415,1.72112485,102630.0,102620.0,5.81e-05]
[1747086014676,1.73678012,102630.0,102620.0,5.81e-05]
[1747086014929,1.74278012,102630.0,102620.0,5.81e-05]
[1747086015361,1.74378012,102630.0,102620.0,5.81e-05]
[1747086016080,1.74278012,102630.0,102620.0,5.81e-05]
[1747086016294,1.74378012,102630.0,102620.0,0.0010581]
[1747086017806,1.84648012,102630.0,102620.0,0.0010581]
[1747086018024,1.74378012,102630.0,102620.0,0.0010581]
[1747086020877,1.75902861,102630.0,102620.0,0.0010581]
[1747086021096,1.75902861,102630.0,102620.0,0.0020581]
[1747086027168,2.18026861,102630.0,102620.0,0.0020581]
[1747086028077,2.17026861,102630.0,102620.0,0.0020581]
[1747086037426,2.21866405,102630.0,102620.0,0.0020581]
[1747086040161,0.57100337,102610.0,102600.0,0.001]
[1747086040384,1.48880803,102610.0,102600.0,0.00110597]
[1747086040623,1.49788015,102610.0,102600.0,0.00110597]
[1747086041408,1.49888015,102610.0,102600.0,0.00110597]
[1747086041999,1.49988015,102610.0,102600.0,0.00110597]
[1747086044578,1.50971531,102610.0,102600.0,0.00110597]
[1747086046141,1.00462808,102610.0,102600.0,0.00110597]
[1747086046866,1.02411868,102610.0,102600.0,0.00110597]
[1747086050866,0.7994635,102610.0,102600.0,0.00110597]
[1747086058027,0.8580335,102610.0,102600.0,0.00110597]
[1747086058262,0.7994635,102610.0,102600.0,0.00110597]
[1747086058610,1.1394635,102610.0,102600.0,0.00110597]
[1747086061384,1.39561868,102610.0,102600.0,0.00110597]
[1747086068229,1.45561868,102610.0,102600.0,0.00110597]
[1747086075100,1.46561868,102610.0,102600.0,0.00110597]
[1747086075318,1.04525553,102590.0,102580.0,0.003]
[1747086075532,1.51366983,102590.0,102580.0,0.00313699]
[1747086075756,1.52274195,102590.0,102580.0,0.00313699]
[1747086075995,1.54997162,102590.0,102580.0,0.00313699]
[1747086076678,1.52374195,102590.0,102580.0,0.00313699]
[1747086077182,1.52574195,102590.0,102580.0,0.00313699]
[1747086081231,1.54099527,102590.0,102580.0,0.00313699]